bitfinex/quotes_BTCUSD_20251016
["timestamp","ask_amount","ask_price","bid_price","bid_amount"]
[1760640423907,0.18395879,108720.0,108710.0,0.08969012]
[1760640424080,0.29395879,108720.0,108700.0,0.27833905]
[1760640424218,0.11,108720.0,108710.0,0.18397571]
[1760640424431,0.01971688,108740.0,108720.0,0.18394364]
[1760640424686,0.30392495,108740.0,108720.0,0.18394364]
[1760640424892,0.18394187,108730.0,108720.0,0.18395879]
[1760640425147,0.30394187,108730.0,108720.0,0.18395879]
[1760640425336,0.18395879,108720.0,108710.0,0.18397571]
[1760640425567,0.31395879,108720.0,108700.0,0.27833905]
[1760640425762,0.13,108720.0,108710.0,0.18397571]
[1760640425990,0.31395879,108720.0,108710.0,0.18397571]
[1760640426398,0.13,108720.0,108710.0,0.18397571]
[1760640426938,0.31395879,108720.0,108710.0,0.001]
[1760640427244,0.31395879,108720.0,108710.0,0.18497571]
[1760640427485,0.31395879,108720.0,108710.0,0.001]
[1760640427957,0.3361718,108720.0,108710.0,0.001]
[1760640429352,0.18397571,108710.0,108700.0,0.18414251]
[1760640429581,0.07,108710.0,108700.0,0.18414251]
[1760640430014,0.19313896,108730.0,108710.0,0.18396192]
[1760640430216,0.12,108730.0,108720.0,0.18395879]
[1760640430418,0.64394187,108730.0,108710.0,0.18396192]
[1760640430631,0.64394187,108730.0,108720.0,0.18395879]
[1760640430632,0.13974642,108730.0,108720.0,0.18395879]
[1760640430844,0.12,108730.0,108720.0,0.18395879]
[1760640431196,0.12,108730.0,108710.0,0.36785204]
[1760640431197,0.18395879,108720.0,108710.0,0.36785204]
[1760640431399,0.18397571,108710.0,108700.0,0.00014987]
[1760640431610,0.19397571,108710.0,108700.0,0.18414251]
[1760640431991,0.01,108710.0,108700.0,0.18414251]
[1760640432478,0.57761507,108730.0,108710.0,0.18396192]
[1760640432685,0.18395879,108720.0,108700.0,0.18414251]
[1760640432871,0.11,108720.0,108710.0,0.18397571]
[1760640433265,0.29395879,108720.0,108710.0,0.18397571]
[1760640433469,0.31370521,108720.0,108700.0,0.18414251]
[1760640433735,0.29395879,108720.0,108710.0,0.18397571]
[1760640433955,0.11,108720.0,108710.0,0.36786583]
[1760640434159,0.01974642,108740.0,108730.0,0.18394187]
[1760640434300,0.3620681,108740.0,108730.0,0.27814187]
[1760640434710,0.32392495,108740.0,108730.0,0.27814187]
[1760640434972,0.14,108740.0,108730.0,0.27814187]
[1760640435184,0.32392495,108740.0,108730.0,0.27814187]
[1760640435333,0.14,108740.0,108730.0,0.27814187]
[1760640435518,0.14,108740.0,108730.0,0.36783199]
[1760640435724,0.14,108740.0,108730.0,1.47390471]
[1760640436026,0.01974642,108770.0,108760.0,0.18389113]
[1760640436243,0.13974642,108770.0,108760.0,0.18389113]
[1760640436448,0.12,108770.0,108760.0,0.18389113]
[1760640436681,0.12,108770.0,108760.0,0.27358125]
[1760640437077,0.12,108770.0,108760.0,1.03965397]
[1760640437484,0.12,108770.0,108760.0,0.27358125]
[1760640437845,0.30387423,108770.0,108760.0,0.27358125]
[1760640438081,0.30387423,108770.0,108760.0,0.27809113]
[1760640438528,0.12,108770.0,108760.0,0.27809113]
[1760640438952,0.12,108770.0,108760.0,0.27909113]
[1760640439156,0.12,108770.0,108760.0,0.36778125]
[1760640439317,0.12,108770.0,108760.0,1.13385397]
[1760640440200,0.12,108770.0,108760.0,0.36778125]
[1760640440447,0.12,108770.0,108760.0,0.27358125]
[1760640440729,0.12,108770.0,108760.0,0.36878125]
[1760640441284,0.12,108770.0,108760.0,0.27458125]
[1760640441477,0.1088293,108790.0,108780.0,0.18385732]
[1760640441681,0.1488293,108790.0,108780.0,0.18385732]
[1760640441883,0.18385732,108780.0,108770.0,0.18385845]
[1760640442092,0.12,108780.0,108770.0,0.36770857]
[1760640443100,0.12,108780.0,108770.0,1.13378129]
[1760640443301,0.12,108780.0,108770.0,0.36770857]
[1760640443654,0.12,108780.0,108770.0,0.40389085]
[1760640443800,0.12,108780.0,108770.0,1.16996357]
[1760640444638,0.12,108780.0,108770.0,0.40389085]
[1760640444960,0.12,108780.0,108770.0,1.16996357]
[1760640445308,0.12,108780.0,108770.0,0.40389085]
[1760640445818,0.12,108780.0,108770.0,1.16996357]
[1760640446625,0.01839673,108810.0,108800.0,0.18382352]
[1760640446826,0.14889651,108810.0,108800.0,0.36767364]
[1760640447027,0.13049978,108810.0,108800.0,1.13374636]
[1760640447439,0.13049978,108810.0,108800.0,1.47374636]
[1760640447440,0.00049978,108810.0,108800.0,1.47374636]
[1760640447682,0.00049978,108810.0,108800.0,1.50992864]
[1760640448493,0.00049978,108810.0,108800.0,0.64969592]
[1760640448697,0.00049978,108810.0,108800.0,1.50992864]
[1760640448838,0.00049978,108810.0,108800.0,1.51092864]
[1760640449249,0.00049978,108810.0,108800.0,1.50992864]
[1760640449433,0.00049978,108810.0,108800.0,1.51092864]
[1760640449639,1e-08,108810.0,108800.0,1.50992864]
[1760640449852,1e-08,108810.0,108800.0,1.5804976]
[1760640450049,1e-08,108810.0,108800.0,1.5814976]
[1760640450694,1e-08,108810.0,108800.0,1.51092864]
[1760640450876,1e-08,108810.0,108800.0,1.52077018]
[1760640451737,1e-08,108810.0,108800.0,0.66053746]
[1760640451892,1e-08,108810.0,108800.0,0.64969592]
[1760640452102,1e-08,108810.0,108800.0,1.51188864]
[1760640452519,1e-08,108810.0,108800.0,1.50988864]
[1760640452767,1e-08,108810.0,108800.0,0.65069592]
[1760640452978,1e-08,108810.0,108800.0,0.61351364]
[1760640453171,1e-08,108810.0,108800.0,0.36763364]
[1760640453371,1e-08,108810.0,108800.0,1.13370636]
[1760640453575,1e-08,108810.0,108800.0,0.86239759]
[1760640453776,1e-08,108810.0,108800.0,0.89857987]
[1760640453941,1e-08,108810.0,108800.0,0.74381592]
[1760640454154,1e-08,108810.0,108800.0,1.23857987]
[1760640454504,1e-08,108810.0,108800.0,1.23957987]
[1760640454952,1e-08,108810.0,108800.0,1.73434382]
[1760640455590,1e-08,108810.0,108800.0,1.73334382]
[1760640455794,0.03471072,108840.0,108830.0,0.18377285]
[1760640455998,0.03486055,108840.0,108830.0,0.8985292]
[1760640456399,0.01646382,108840.0,108830.0,0.8985292]
[1760640457133,0.01646382,108840.0,108830.0,0.8044092]
[1760640457465,0.01646382,108840.0,108830.0,0.8985292]
[1760640457852,0.18372221,108860.0,108850.0,0.18373909]
[1760640458082,0.29372221,108860.0,108850.0,0.18377012]
[1760640458313,0.18373925,108850.0,108840.0,0.18374865]
[1760640458592,0.21373925,108850.0,108840.0,0.18377012]
[1760640458799,0.21373925,108850.0,108840.0,0.27344609]
[1760640459018,0.21373925,108850.0,108840.0,0.08969012]
[1760640459216,0.21373925,108850.0,108830.0,0.27785285]
[1760640459445,0.21373925,108850.0,108840.0,0.18375597]
[1760640459652,0.21373909,108850.0,108840.0,0.13375597]
[1760640459862,0.31373909,108850.0,108830.0,0.36754297]
[1760640460073,0.31373909,108850.0,108830.0,0.27346161]
[1760640460284,0.31373909,108850.0,108830.0,0.36754161]
[1760640460563,0.18375597,108840.0,108830.0,0.36754161]
[1760640460762,0.18375597,108840.0,108820.0,0.67852406]
[1760640460763,0.18378195,108830.0,108810.0,0.19299696]
[1760640460967,0.18380484,108820.0,108810.0,0.00014983]
[1760640461169,0.53380484,108820.0,108810.0,0.00014983]
[1760640461437,1.02856879,108820.0,108810.0,0.00014983]
[1760640461648,0.81734838,108820.0,108810.0,0.00014983]
[1760640461866,1.13115322,108820.0,108810.0,0.00014983]
[1760640462090,0.33179124,108820.0,108810.0,0.00014983]
[1760640462305,0.82655519,108820.0,108810.0,0.00014983]
[1760640462530,0.31378974,108820.0,108810.0,0.00014983]
[1760640463463,0.13,108820.0,108810.0,0.18395646]
[1760640463909,0.13,108820.0,108810.0,0.00014983]
[1760640464133,0.31378974,108820.0,108810.0,0.00014983]
[1760640464343,0.31378974,108820.0,108810.0,0.18395646]
[1760640465308,0.13,108820.0,108810.0,0.00014983]
[1760640465499,0.31378974,108820.0,108810.0,0.00014983]
[1760640465711,0.80855369,108820.0,108810.0,0.00014983]
[1760640465932,0.33345716,108820.0,108810.0,0.00014983]
[1760640466149,0.31378974,108820.0,108810.0,0.00014983]
[1760640466794,0.82654009,108820.0,108810.0,0.00014983]
[1760640467004,0.86333348,108820.0,108810.0,0.00014983]
[1760640467217,1.20333348,108820.0,108810.0,0.00014983]
[1760640468373,0.73329922,108820.0,108810.0,0.00014983]
[1760640468608,0.18384316,108790.0,108780.0,0.18385688]
[1760640468844,0.31384316,108790.0,108780.0,0.00049978]
[1760640469321,0.31384316,108790.0,108780.0,0.1843571]
[1760640469554,0.65384042,108790.0,108780.0,0.1843571]
[1760640469788,0.48966742,108790.0,108780.0,0.27404722]
[1760640470010,0.47,108790.0,108780.0,0.27404722]
[1760640470531,0.47,108790.0,108780.0,0.1843571]
[1760640470762,0.20847222,108820.0,108800.0,0.18382352]
[1760640470994,0.54220336,108810.0,108800.0,0.18382352]
[1760640471225,0.46,108810.0,108800.0,0.18382352]
[1760640471458,0.12,108810.0,108800.0,0.27351364]
[1760640471687,0.12,108810.0,108800.0,0.76827759]
[1760640472816,0.01974579,108820.0,108800.0,0.76827759]
[1760640472817,0.18377285,108830.0,108820.0,0.18377565]
[1760640473074,0.6635246,108830.0,108820.0,0.18377565]
[1760640473521,0.6635246,108830.0,108810.0,0.27788663]
[1760640473756,0.6635246,108830.0,108810.0,0.36757675]
[1760640473986,0.13990139,108830.0,108820.0,0.27347986]
[1760640474204,0.12014964,108830.0,108820.0,0.27347986]
[1760640474449,0.13990139,108830.0,108820.0,0.27347986]
[1760640475113,0.02652014,108820.0,108810.0,0.28707696]
[1760640475338,0.14652014,108820.0,108810.0,0.37676708]
[1760640476893,0.1838077,108810.0,108790.0,0.68778136]
[1760640477098,0.19380663,108810.0,108800.0,0.2779035]
[1760640477460,0.19380663,108810.0,108790.0,0.27352811]
[1760640477663,0.18382352,108800.0,108790.0,0.09408]
[1760640477861,0.19382352,108800.0,108790.0,0.27792042]
[1760640478487,0.19382352,108800.0,108780.0,0.18385732]
[1760640478688,0.19382352,108800.0,108790.0,0.18384042]
[1760640478914,0.18384042,108790.0,108780.0,0.36762744]
[1760640479118,0.18384042,108790.0,108770.0,0.18386897]
[1760640479324,0.19384042,108790.0,108780.0,0.18385732]
[1760640480161,0.19384042,108790.0,108780.0,0.1843571]
[1760640481517,0.01,108790.0,108780.0,0.00049978]
[1760640481769,0.19384042,108790.0,108780.0,0.1843571]
[1760640481974,1.02860437,108790.0,108780.0,0.00049978]
[1760640482172,0.55359217,108790.0,108780.0,0.00049978]
[1760640482370,0.36975175,108790.0,108780.0,0.1843571]
[1760640482574,0.55359217,108790.0,108780.0,0.1843571]
[1760640483140,0.36975175,108790.0,108780.0,0.1843571]
[1760640483509,0.55359217,108790.0,108780.0,0.1843571]
[1760640484030,0.36975175,108790.0,108780.0,0.1843571]
[1760640484309,0.53384042,108790.0,108780.0,0.1843571]
[1760640484522,0.53384042,108790.0,108780.0,0.00049978]
[1760640484523,0.55359217,108790.0,108780.0,0.00049978]
[1760640485337,1.17987955,108790.0,108780.0,0.00049978]
[1760640485690,6.29834576,108790.0,108780.0,0.00049978]
[1760640486076,6.36286269,108790.0,108780.0,0.00049978]
[1760640486278,0.18393945,108750.0,108730.0,0.18392956]
[1760640486642,0.18392495,108740.0,108730.0,0.00014987]
[1760640486853,0.19392495,108740.0,108730.0,0.00014987]
[1760640487174,0.53392495,108740.0,108730.0,0.00014987]
[1760640487369,0.5536767,108740.0,108730.0,0.18409174]
[1760640487808,0.5536767,108740.0,108730.0,0.00014987]
[1760640488008,0.5536767,108740.0,108730.0,0.18409174]
[1760640488229,0.5536767,108740.0,108730.0,0.00014987]
[1760640488434,1.13813077,108740.0,108730.0,0.00014987]
[1760640489406,0.64336682,108740.0,108730.0,0.00014987]
[1760640489987,0.64336682,108740.0,108710.0,0.18397327]
[1760640489988,0.18395879,108720.0,108710.0,0.18397327]
[1760640490199,0.31395879,108720.0,108710.0,0.18397327]
[1760640490364,0.18397571,108710.0,108700.0,0.0004]
[1760640490569,0.01,108710.0,108700.0,0.1845424]
[1760640490792,0.19397571,108710.0,108700.0,0.1845424]
[1760640490992,0.19397571,108710.0,108700.0,0.00054976]
[1760640491211,0.68873966,108710.0,108700.0,0.1845424]
[1760640491407,0.68873966,108710.0,108700.0,0.00054976]
[1760640491613,1.04620194,108710.0,108700.0,0.00054976]
[1760640492026,1.04620194,108710.0,108700.0,0.1845424]
[1760640493358,1.04620194,108710.0,108700.0,0.00054976]
[1760640493561,1.13589206,108710.0,108700.0,0.00054976]
[1760640494086,1.13589206,108710.0,108700.0,0.00058976]
[1760640494789,0.64112811,108710.0,108700.0,0.00058976]
[1760640494991,1.13589206,108710.0,108700.0,0.00058976]
[1760640496014,1.22557414,108710.0,108700.0,0.00058976]
[1760640496221,1.15554904,108710.0,108700.0,0.00058976]
[1760640496553,1.19173132,108710.0,108700.0,0.00058976]
[1760640496872,1.19173132,108710.0,108700.0,0.00953002]
[1760640497239,1.15554904,108710.0,108700.0,0.00953002]
[1760640498945,1.13589206,108710.0,108700.0,0.00953002]
[1760640499355,1.22557414,108710.0,108700.0,0.00953002]
[1760640499711,1.24620015,108710.0,108700.0,0.00953002]
[1760640499914,1.15651796,108710.0,108700.0,0.00953002]
[1760640500120,1.13689206,108710.0,108700.0,0.00953002]
[1760640500755,0.64212811,108710.0,108700.0,0.00953002]
[1760640501317,1.13689206,108710.0,108700.0,0.00953002]
[1760640502352,1.13589206,108710.0,108700.0,0.00953002]
[1760640502525,1.22657414,108710.0,108700.0,0.00953002]
[1760640502924,1.22557414,108710.0,108700.0,0.00953002]
[1760640503387,0.64112811,108710.0,108700.0,0.00953002]
[1760640503544,1.13589206,108710.0,108700.0,0.00953002]
[1760640503747,0.91589206,108710.0,108700.0,0.00953002]
[1760640503954,0.42112811,108710.0,108700.0,0.00953002]
[1760640504150,0.42212811,108710.0,108700.0,0.00953002]
[1760640505533,0.40366583,108710.0,108700.0,0.00953002]
[1760640505689,0.74366583,108710.0,108700.0,0.00953002]
[1760640506063,0.40366583,108710.0,108700.0,0.19352266]
[1760640506298,0.31397571,108710.0,108700.0,0.19352266]
[1760640507266,0.13,108710.0,108700.0,0.28321278]
[1760640507515,0.01743282,108740.0,108710.0,0.18394649]
[1760640507742,0.18394391,108730.0,108710.0,0.18397336]
[1760640507980,0.30394391,108730.0,108710.0,0.18397336]
[1760640508207,0.30394187,108730.0,108720.0,0.18395879]
[1760640508674,0.30394187,108730.0,108710.0,0.18397336]
[1760640508901,0.18395879,108720.0,108710.0,0.18397538]
[1760640509361,0.18397571,108710.0,108700.0,0.00058976]
[1760640509615,0.31397571,108710.0,108700.0,0.00058976]
[1760640509886,0.13,108710.0,108700.0,0.1845824]
[1760640510106,0.31397571,108710.0,108700.0,0.1845824]
[1760640511229,0.13,108710.0,108700.0,0.1845824]
[1760640512196,0.31397571,108710.0,108700.0,0.1845824]
[1760640513689,0.13,108710.0,108700.0,0.1845824]
[1760640514062,0.31397571,108710.0,108700.0,0.00953002]
[1760640514263,0.33368829,108710.0,108700.0,0.00953002]
[1760640514440,0.33368829,108710.0,108700.0,0.19352266]
[1760640514640,0.33368829,108710.0,108700.0,0.00953002]
[1760640515269,0.37542668,108710.0,108700.0,0.19352266]
[1760640515472,0.35088413,108710.0,108700.0,0.19352266]
[1760640516115,0.37542668,108710.0,108700.0,0.19352266]
[1760640517058,0.37542668,108710.0,108700.0,0.00953002]
[1760640517267,0.20718529,108710.0,108700.0,0.00953002]
[1760640517493,0.19147042,108710.0,108700.0,0.19352266]
[1760640517730,0.16692787,108710.0,108700.0,0.19352266]
[1760640517921,0.14971258,108710.0,108700.0,0.19352266]
[1760640518117,0.16692962,108710.0,108700.0,0.19352266]
[1760640518320,0.37544788,108710.0,108700.0,0.19352266]
[1760640518524,0.19147217,108710.0,108700.0,0.19352266]
[1760640518768,0.14971258,108710.0,108700.0,0.19352266]
[1760640518944,0.01971258,108710.0,108700.0,0.19352266]
[1760640519124,0.01971258,108710.0,108700.0,0.96172802]
[1760640519326,0.01971258,108710.0,108700.0,1.08760042]
[1760640519564,0.04437654,108730.0,108720.0,0.18395879]
[1760640519733,0.17705087,108730.0,108720.0,0.27807879]
[1760640519937,0.17705087,108730.0,108720.0,0.28696452]
[1760640520153,0.15983399,108730.0,108720.0,1.14386]
[1760640520389,0.03822075,108750.0,108740.0,0.18392495]
[1760640520683,0.16822075,108750.0,108740.0,0.36773507]
[1760640520897,0.14982402,108750.0,108740.0,0.36773507]
[1760640521800,0.14982402,108750.0,108740.0,0.36873507]
[1760640522178,0.13,108750.0,108740.0,0.36873507]
[1760640522551,0.33373206,108750.0,108740.0,0.001]
[1760640522791,0.37545497,108750.0,108740.0,0.001]
[1760640522967,0.40838513,108750.0,108740.0,0.001]
[1760640523167,0.37545497,108750.0,108740.0,0.001]
[1760640523647,0.46514509,108750.0,108740.0,0.001]
[1760640523861,0.18393648,108740.0,108730.0,0.18394187]
[1760640524066,0.18394187,108730.0,108720.0,0.27803879]
[1760640524265,0.29394187,108730.0,108720.0,0.27803879]
[1760640524474,0.11,108730.0,108720.0,0.18395879]
[1760640524619,0.12982402,108730.0,108720.0,0.27803879]
[1760640525451,0.11,108730.0,108720.0,0.27803879]
[1760640525627,0.11,108730.0,108700.0,0.21133882]
[1760640525857,0.31376589,108730.0,108720.0,0.18395879]
[1760640526250,0.31376589,108730.0,108720.0,0.1868278]
[1760640527327,0.11,108730.0,108720.0,0.1868278]
[1760640527751,0.01982402,108740.0,108730.0,0.18394187]
[1760640527945,0.32374897,108740.0,108730.0,0.18394187]
[1760640528150,0.12,108740.0,108730.0,1.14319527]
[1760640528360,0.01982402,108750.0,108740.0,0.18392495]
[1760640528565,0.15982402,108750.0,108740.0,0.18392495]
[1760640529391,0.36090258,108750.0,108740.0,0.18392495]
[1760640529597,0.36090234,108750.0,108740.0,0.18392495]
[1760640529798,0.36090234,108750.0,108730.0,0.27802187]
[1760640530041,0.36090234,108750.0,108730.0,0.18394187]
[1760640530236,0.36090234,108750.0,108740.0,0.18392495]
[1760640530436,0.15982402,108750.0,108740.0,0.18392495]
[1760640530657,0.36090307,108750.0,108730.0,0.27802187]
[1760640530987,0.18392495,108740.0,108730.0,0.18394187]
[1760640531181,0.14982402,108740.0,108730.0,0.18394187]
[1760640531366,0.13,108740.0,108730.0,0.18494187]
[1760640531570,0.13,108740.0,108730.0,0.27902187]
[1760640531773,0.13,108740.0,108730.0,0.18494187]
[1760640532146,0.13,108740.0,108730.0,0.27802187]
[1760640532554,0.01982402,108750.0,108740.0,0.18392495]
[1760640532757,0.33373206,108750.0,108740.0,0.18392495]
[1760640533181,0.35090503,108750.0,108730.0,0.27802187]
[1760640533423,0.35090503,108750.0,108740.0,0.18392495]
[1760640533740,0.35090503,108750.0,108730.0,0.27802187]
[1760640533953,0.35090503,108750.0,108740.0,0.19159517]
[1760640534307,0.33373206,108750.0,108740.0,0.19159517]
[1760640534839,0.33373206,108750.0,108740.0,0.00767022]
[1760640536342,0.31390804,108750.0,108740.0,0.19159517]
[1760640536544,0.31390804,108750.0,108740.0,0.16507503]
[1760640537370,0.31390804,108750.0,108740.0,0.18392495]
[1760640537596,0.18392495,108740.0,108730.0,0.27797231]
[1760640537769,0.08798049,108740.0,108730.0,0.27797231]
[1760640537979,0.27190544,108740.0,108730.0,0.18393231]
[1760640538187,0.08798049,108740.0,108730.0,0.27797231]
[1760640538842,0.08798049,108740.0,108730.0,0.18393231]
[1760640539014,0.08798049,108740.0,108730.0,0.27797231]
[1760640539690,0.27190544,108740.0,108730.0,0.27798187]
[1760640540105,0.27190544,108740.0,108730.0,0.18394187]
[1760640540303,0.08798049,108740.0,108730.0,0.18394187]
[1760640540918,0.18390804,108750.0,108730.0,0.18394187]
[1760640541387,0.26390804,108750.0,108740.0,0.18392495]
[1760640541592,0.08,108750.0,108740.0,0.18392495]
[1760640541926,0.08,108750.0,108740.0,0.27796495]
[1760640542567,0.26390804,108750.0,108740.0,0.27796495]
[1760640542792,0.26390804,108750.0,108740.0,0.09404]
[1760640542957,0.18392495,108740.0,108730.0,0.18394187]
[1760640543166,0.02,108740.0,108730.0,0.27858921]
[1760640543380,0.19310344,108750.0,108740.0,0.18392495]
[1760640543588,0.31310344,108750.0,108740.0,0.18392495]
[1760640543788,0.12,108750.0,108740.0,0.18392495]
[1760640544005,0.30390804,108750.0,108740.0,0.18392495]
[1760640545000,0.30390804,108750.0,108730.0,0.27858921]
[1760640545215,0.18392495,108740.0,108730.0,0.00060734]
[1760640545418,0.12,108740.0,108730.0,0.27858921]
[1760640546154,0.30392495,108740.0,108730.0,0.27858921]
[1760640546348,0.12,108740.0,108730.0,0.27858921]
[1760640548026,0.30392495,108740.0,108730.0,0.00060734]
[1760640548773,0.39361507,108740.0,108730.0,0.00060734]
[1760640548990,1.53788407,108740.0,108730.0,0.00060734]
[1760640549434,0.77067871,108740.0,108730.0,0.00060734]
[1760640550399,0.77167871,108740.0,108730.0,0.00060734]
[1760640551078,1.56242662,108740.0,108730.0,0.00060734]
[1760640551290,0.79522126,108740.0,108730.0,0.00060734]
[1760640551490,0.79622126,108740.0,108730.0,0.00060734]
[1760640552582,0.79522002,108740.0,108730.0,0.00060734]
[1760640552951,0.79622002,108740.0,108730.0,0.00060734]
[1760640553300,1.56342538,108740.0,108730.0,0.00060734]
[1760640553651,1.56342538,108740.0,108730.0,0.00064734]
[1760640554295,6.57181299,108740.0,108730.0,0.00064734]
[1760640554500,6.62120823,108740.0,108730.0,0.00064734]
[1760640555102,0.18397571,108710.0,108700.0,0.00044]
[1760640555308,0.31397571,108710.0,108700.0,0.1845824]
[1760640555713,0.31397571,108710.0,108700.0,0.18524219]
[1760640556593,0.13,108710.0,108700.0,0.18524219]
[1760640556795,0.18396017,108720.0,108710.0,0.18396584]
[1760640557028,0.32396017,108720.0,108710.0,0.18396584]
[1760640557174,0.32396017,108720.0,108710.0,0.18462557]
[1760640557379,0.32396017,108720.0,108710.0,0.00065973]
[1760640557551,0.32396017,108720.0,108710.0,0.18463544]
[1760640557991,0.32395879,108720.0,108710.0,0.18463544]
[1760640558654,0.14,108720.0,108710.0,0.18463544]
[1760640558888,0.32395879,108720.0,108710.0,0.18463544]
[1760640559084,0.32395879,108720.0,108710.0,0.00065973]
[1760640559297,0.18395879,108720.0,108710.0,0.18463544]
[1760640559503,0.15092893,108720.0,108710.0,0.00065973]
[1760640559703,0.20092893,108720.0,108710.0,0.00065973]
[1760640561511,0.29061905,108720.0,108710.0,0.00065973]
[1760640562108,1.05782441,108720.0,108710.0,0.00065973]
[1760640562516,1.50732235,108720.0,108710.0,0.00065973]
[1760640562713,6.50732235,108720.0,108710.0,0.00065973]
[1760640562958,6.43484304,108720.0,108710.0,0.00065973]
[1760640563182,1.41764027,108720.0,108710.0,0.00065973]
[1760640563592,6.47102048,108720.0,108710.0,1e-08]
[1760640563804,5.56015799,108710.0,108700.0,1e-08]
[1760640563966,6.68854587,108710.0,108700.0,1e-08]
[1760640564594,6.62653905,108710.0,108700.0,1e-08]
[1760640566279,6.62753905,108710.0,108700.0,1e-08]
[1760640567211,6.75732921,108710.0,108700.0,1e-08]
[1760640567461,6.29123185,108680.0,108670.0,1e-08]
[1760640567700,6.60883692,108680.0,108670.0,1e-08]
[1760640567921,6.80361863,108680.0,108670.0,1e-08]
[1760640568155,6.70675863,108680.0,108670.0,1e-08]
[1760640568622,6.73144878,108680.0,108670.0,1e-08]
[1760640568869,6.69949027,108680.0,108670.0,1e-08]
[1760640569144,6.60880819,108680.0,108670.0,1e-08]
[1760640569376,6.61080819,108680.0,108670.0,1e-08]
[1760640569589,6.60880819,108680.0,108670.0,1e-08]
[1760640569812,0.18409425,108640.0,108620.0,0.21173075]
[1760640570013,0.30409425,108640.0,108620.0,0.20302431]
[1760640570216,0.1841112,108630.0,108620.0,0.18462758]
[1760640570427,0.3141112,108630.0,108620.0,0.00049996]
[1760640570902,0.3141112,108630.0,108620.0,0.18462811]
[1760640571115,0.3141112,108630.0,108620.0,0.00049996]
[1760640572006,0.34564958,108630.0,108620.0,0.00049996]
[1760640572336,0.16153838,108630.0,108620.0,0.18562811]
[1760640572536,0.34564958,108630.0,108620.0,0.18562811]
[1760640572759,0.34564958,108630.0,108620.0,0.00149996]
[1760640572962,1.25189825,108630.0,108620.0,0.00149996]
[1760640573314,1.20254506,108630.0,108620.0,0.00149996]
[1760640573485,0.4353397,108630.0,108620.0,0.00149996]
[1760640574486,0.4353397,108630.0,108620.0,0.00049996]
[1760640575150,1.20254506,108630.0,108620.0,0.00049996]
[1760640575383,1.54254506,108630.0,108620.0,0.00049996]
[1760640575561,1.63413648,108630.0,108620.0,0.00049996]
[1760640575785,1.56222698,108630.0,108620.0,0.00049996]
[1760640576534,0.79502162,108630.0,108620.0,0.00049996]
[1760640576891,0.21969012,108630.0,108620.0,0.18462811]
[1760640577025,0.13,108630.0,108620.0,0.18462811]
[1760640577865,0.3141112,108630.0,108620.0,0.00049996]
[1760640578279,0.3141112,108630.0,108620.0,0.00149996]
[1760640578659,1.32999391,108630.0,108620.0,0.00149996]
[1760640578878,1.349675,108630.0,108620.0,0.00149996]
[1760640579089,1.349675,108630.0,108620.0,0.00049996]
[1760640579356,0.85316449,108630.0,108620.0,0.00049996]
[1760640579571,1.25999292,108630.0,108620.0,0.00049996]
[1760640581262,0.76348241,108630.0,108620.0,0.00049996]
[1760640581897,0.74380132,108630.0,108620.0,0.18462811]
[1760640582121,0.74380132,108630.0,108620.0,0.00049996]
[1760640582842,1.34967509,108630.0,108620.0,0.00049996]
[1760640583045,1.25999301,108630.0,108620.0,0.00049996]
[1760640583245,0.74380132,108630.0,108620.0,0.00049996]
[1760640583614,0.74380132,108630.0,108620.0,0.18462811]
[1760640583813,0.74380132,108630.0,108620.0,0.00049996]
[1760640584252,1.26000307,108630.0,108620.0,0.00049996]
[1760640584453,1.36677763,108630.0,108620.0,0.00049996]
[1760640585497,1.27709555,108630.0,108620.0,0.00049996]
[1760640585959,0.78058504,108630.0,108620.0,0.00049996]
[1760640586172,0.57938136,108630.0,108620.0,0.18462811]
[1760640586376,0.3141112,108630.0,108620.0,0.18462811]
[1760640586731,0.3141112,108630.0,108620.0,0.00049996]
[1760640588307,0.3141112,108630.0,108620.0,0.18462811]
[1760640588729,0.3141112,108630.0,108620.0,0.00049996]
[1760640589196,0.67124359,108630.0,108620.0,0.00049996]
[1760640589427,0.69094363,108630.0,108620.0,0.00049996]
[1760640591296,1.27713622,108630.0,108620.0,0.00049996]
[1760640591569,1.30183441,108630.0,108620.0,0.00049996]
[1760640592276,0.83828241,108630.0,108620.0,0.00049996]
[1760640592409,0.83828241,108630.0,108620.0,0.18462811]
[1760640592410,0.53152258,108630.0,108620.0,0.18462811]
[1760640592609,0.71563378,108630.0,108620.0,0.00049996]
[1760640593226,0.53152258,108630.0,108620.0,0.18462811]
[1760640593468,0.71563378,108630.0,108620.0,0.18462811]
[1760640594235,0.71563378,108630.0,108620.0,0.00049996]
[1760640594449,0.74859229,108630.0,108620.0,0.18462811]
[1760640594643,0.53152258,108630.0,108620.0,0.18462811]
[1760640595269,0.74859229,108630.0,108620.0,0.00049996]
[1760640595796,0.72390214,108630.0,108620.0,0.00049996]
[1760640596144,0.72390214,108630.0,108620.0,0.18462811]
[1760640596562,0.72390214,108630.0,108620.0,0.00049996]
[1760640596563,0.77333991,108630.0,108620.0,0.00049996]
[1760640597201,0.7403814,108630.0,108620.0,0.18462811]
[1760640597407,0.77351323,108630.0,108620.0,0.18462811]
[1760640599513,0.77352262,108630.0,108620.0,0.18462811]
[1760640599944,1.23689191,108630.0,108620.0,0.00049996]
[1760640600789,1.23707906,108630.0,108620.0,0.00049996]
[1760640600993,1.34184834,108630.0,108620.0,0.00049996]
[1760640601343,1.34184834,108630.0,108610.0,0.0004]
[1760640601344,0.18412815,108620.0,108610.0,0.0004]
[1760640601541,1.3170707,108620.0,108610.0,0.00055005]
[1760640601764,1.33186529,108620.0,108610.0,0.00055005]
[1760640602876,0.83535478,108620.0,108610.0,0.00055005]
[1760640603055,0.82055225,108620.0,108610.0,0.00055005]
[1760640603259,1.31706276,108620.0,108610.0,0.00055005]
[1760640604507,1.33186529,108620.0,108610.0,0.00055005]
[1760640604854,1.36804757,108620.0,108610.0,0.00055005]
[1760640605103,0.18417902,108590.0,108580.0,0.00046659]
[1760640605302,0.8857085,108590.0,108580.0,0.00061622]
[1760640605554,1.25056539,108590.0,108580.0,0.00061622]
[1760640605678,1.307113,108590.0,108580.0,0.00061622]
[1760640607431,6.34329528,108590.0,108580.0,0.00061622]
[1760640607640,6.44954861,108590.0,108580.0,0.00061622]
[1760640608470,6.45435868,108590.0,108580.0,0.00061622]
[1760640608953,0.52422991,108560.0,108550.0,0.2]
[1760640609182,1.36013015,108560.0,108550.0,0.2]
[1760640609435,1.33529935,108560.0,108550.0,0.2]
[1760640609661,1.36178263,108560.0,108550.0,0.2]
[1760640609900,0.8404949,108560.0,108550.0,0.2]
[1760640610130,0.8404949,108560.0,108510.0,0.18427647]
[1760640610131,5.5290848,108510.0,108500.0,4e-05]
[1760640610360,6.35151248,108510.0,108500.0,0.00054086]
[1760640610595,6.40098901,108510.0,108500.0,0.00054086]
[1760640610795,1.35151389,108510.0,108500.0,0.00054086]